{"text_format":"3","workbook":"xlsx","n_sheets":1,"sheets":["тестовый"],"not_rendered":{"external_links":5},"read":"whole","date_system":"1900"}

{"sheet":"тестовый","index":0,"n_rows":17,"n_cols":17,"rows_kept":17,"merged":[[0,0,0,16]]}
["Протокол по итогам муниципального этапа ВсОШ по предмету \"Русская литература для учащихся школ с родным языком обучения\"  <Менделеевского> муниципального района в 2019-2020 учебном году "]
["№ п/п","Муниципалитет","Полное наименование образовательного учреждения (по уставу)","Фамилия","Имя","Отчество","Класс","Дата рождения","Пол","Балл","Апеляционный балл","Итоговый балл","Максимальный балл","Статус","Фамилия, имя, отчество педагога, подготовившего участника олимпиады","Полное наименование образовательного учреждения (по уставу)","Предмет"]
[1,"Менделеевский",{"$f":"[1]fullresults_2016_11_22_10_41!B8","v":"МБОУ \"Тураевская средняя общеобразовательная школа\" Менделеевского муниципального района РТ"},{"$f":"[1]fullresults_2016_11_22_10_41!C8","v":"Салихов"},{"$f":"[1]fullresults_2016_11_22_10_41!D8","v":"Динар"},null,{"$f":"[1]fullresults_2016_11_22_10_41!F8","v":"7"},null,{"$f":"[1]fullresults_2016_11_22_10_41!H8","v":"муж"},{"$f":"[1]fullresults_2016_11_22_10_41!I8","v":26},0,26,{"$f":"[1]fullresults_2016_11_22_10_41!K8","v":50},{"$f":"[1]fullresults_2016_11_22_10_41!L8","v":"призер"},{"$f":"[1]fullresults_2016_11_22_10_41!M8","v":"Гибаева Василя Саитшарифовна"},{"$f":"[1]fullresults_2016_11_22_10_41!N8","v":"МБОУ \"Тураевская средняя общеобразовательная школа\" Менделеевского муниципального района РТ"},"русская литература для учащихся с родным языком обучения"]
[2,"Менделеевский",{"$f":"[2]fullresults_2016_11_22_10_41!B8","v":"МБОУ \"Бизякинская средняя общеобразовательная школа\" Менделеевского муниципального района РТ"},{"$f":"[2]fullresults_2016_11_22_10_41!C8","v":"Нуретдинова"},{"$f":"[2]fullresults_2016_11_22_10_41!D8","v":"Алина"},null,{"$f":"[2]fullresults_2016_11_22_10_41!F8","v":"8"},null,{"$f":"[2]fullresults_2016_11_22_10_41!H8","v":"жен"},{"$f":"[2]fullresults_2016_11_22_10_41!I8","v":20},0,{"$f":"[2]fullresults_2016_11_22_10_41!J8","v":20},{"$f":"[2]fullresults_2016_11_22_10_41!K8","v":50},{"$f":"[2]fullresults_2016_11_22_10_41!L8","v":"участник"},{"$f":"[2]fullresults_2016_11_22_10_41!M8","v":"Калимуллина Равиля Валиевна"},{"$f":"[2]fullresults_2016_11_22_10_41!N8","v":"МБОУ \"Бизякинская средняя общеобразовательная школа\" Менделеевского муниципального района РТ"},"русская литература для учащихся с родным языком обучения"]
[3,"Менделеевский",{"$f":"[2]fullresults_2016_11_22_10_41!B9","v":"МБОУ \"Ильнетьская основная  общеобразовательная школа\" Менделеевского муниципального района РТ"},{"$f":"[2]fullresults_2016_11_22_10_41!C9","v":"Андреева"},{"$f":"[2]fullresults_2016_11_22_10_41!D9","v":"Аделина"},null,{"$f":"[2]fullresults_2016_11_22_10_41!F9","v":"8"},null,{"$f":"[2]fullresults_2016_11_22_10_41!H9","v":"жен"},{"$f":"[2]fullresults_2016_11_22_10_41!I9","v":45},0,{"$f":"[2]fullresults_2016_11_22_10_41!J9","v":45},{"$f":"[2]fullresults_2016_11_22_10_41!K9","v":50},{"$f":"[2]fullresults_2016_11_22_10_41!L9","v":"победитель"},{"$f":"[2]fullresults_2016_11_22_10_41!M9","v":"Кузнецова Валенина Александровна"},{"$f":"[2]fullresults_2016_11_22_10_41!N9","v":"МБОУ \"Ильнетьская основная общеобразовательная школа\" Менделеевского муниципального района РТ"},"русская литература для учащихся с родным языком обучения"]
[4,"Менделеевский",{"$f":"[2]fullresults_2016_11_22_10_41!B10","v":"МБОУ \"Монашевская средняя общеобразовательная школа\" Менделеевского муниципального района РТ"},{"$f":"[2]fullresults_2016_11_22_10_41!C10","v":"Ишаева"},{"$f":"[2]fullresults_2016_11_22_10_41!D10","v":"Кристина"},null,{"$f":"[2]fullresults_2016_11_22_10_41!F10","v":"8"},null,{"$f":"[2]fullresults_2016_11_22_10_41!H10","v":"жен"},{"$f":"[2]fullresults_2016_11_22_10_41!I10","v":20},0,{"$f":"[2]fullresults_2016_11_22_10_41!J10","v":20},{"$f":"[2]fullresults_2016_11_22_10_41!K10","v":50},{"$f":"[2]fullresults_2016_11_22_10_41!L10","v":"участник"},{"$f":"[2]fullresults_2016_11_22_10_41!M10","v":"Иванова Надежда Николаевна"},{"$f":"[2]fullresults_2016_11_22_10_41!N10","v":"МБОУ \"Монашевская средняя общеобразовательная школа\" Менделеевского муниципального района РТ"},"русская литература для учащихся с родным языком обучения"]
[5,"Менделеевский",{"$f":"[2]fullresults_2016_11_22_10_41!B11","v":"МБОУ \"Тураевская средняя общеобразовательная школа\""},{"$f":"[2]fullresults_2016_11_22_10_41!C11","v":"Игнатьев"},{"$f":"[2]fullresults_2016_11_22_10_41!D11","v":"Рузаль"},null,{"$f":"[2]fullresults_2016_11_22_10_41!F11","v":"8"},null,{"$f":"[2]fullresults_2016_11_22_10_41!H11","v":"муж"},{"$f":"[2]fullresults_2016_11_22_10_41!I11","v":25},0,{"$f":"[2]fullresults_2016_11_22_10_41!J11","v":25},{"$f":"[2]fullresults_2016_11_22_10_41!K11","v":50},{"$f":"[2]fullresults_2016_11_22_10_41!L11","v":"призер"},{"$f":"[2]fullresults_2016_11_22_10_41!M11","v":"Нургалеева Венера Римовна"},{"$f":"[2]fullresults_2016_11_22_10_41!N11","v":"МБОУ \"Тураевская средняя общеобразовательная школа\""},"русская литература для учащихся с родным языком обучения"]
[6,"Менделеевский",{"$f":"[2]fullresults_2016_11_22_10_41!B12","v":"МБОУ \"Псеевская  средняя общеобразовательная школа\""},{"$f":"[2]fullresults_2016_11_22_10_41!C12","v":"Шириева"},{"$f":"[2]fullresults_2016_11_22_10_41!D12","v":"Эльвина"},null,{"$f":"[2]fullresults_2016_11_22_10_41!F12","v":8},null,{"$f":"[2]fullresults_2016_11_22_10_41!H12","v":"жен"},{"$f":"[2]fullresults_2016_11_22_10_41!I12","v":32},0,{"$f":"[2]fullresults_2016_11_22_10_41!J12","v":32},{"$f":"[2]fullresults_2016_11_22_10_41!K12","v":50},{"$f":"[2]fullresults_2016_11_22_10_41!L12","v":"призер"},{"$f":"[2]fullresults_2016_11_22_10_41!M12","v":"Зигангареева Альфия Сагитовна"},{"$f":"[2]fullresults_2016_11_22_10_41!N12","v":"МБОУ \"Псеевская  средняя общеобразовательная школа\""},"русская литература для учащихся с родным языком обучения"]
[7,"Менделеевский",{"$f":"[2]fullresults_2016_11_22_10_41!B13","v":"МБОУ \"Средняя общеобразовательная школа №7\""},{"$f":"[2]fullresults_2016_11_22_10_41!C13","v":"Журавлева"},{"$f":"[2]fullresults_2016_11_22_10_41!D13","v":"Анастсия"},null,{"$f":"[2]fullresults_2016_11_22_10_41!F13","v":8},null,{"$f":"[2]fullresults_2016_11_22_10_41!H13","v":"жен"},{"$f":"[2]fullresults_2016_11_22_10_41!I13","v":3},0,{"$f":"[2]fullresults_2016_11_22_10_41!J13","v":3},{"$f":"[2]fullresults_2016_11_22_10_41!K13","v":50},{"$f":"[2]fullresults_2016_11_22_10_41!L13","v":"участник"},{"$f":"[2]fullresults_2016_11_22_10_41!M13","v":"Гайфуллина Резеда Анваровна"},{"$f":"[2]fullresults_2016_11_22_10_41!N13","v":"МБОУ \"Средняя общеобразовательная школа №7\""},"русская литература для учащихся с родным языком обучения"]
[8,"Менделеевский",{"$f":"[2]fullresults_2016_11_22_10_41!B14","v":"МБОУ \"Средняя общеобразовательная школа №7\""},{"$f":"[2]fullresults_2016_11_22_10_41!C14","v":"Садикова "},{"$f":"[2]fullresults_2016_11_22_10_41!D14","v":"Рузиля"},null,{"$f":"[2]fullresults_2016_11_22_10_41!F14","v":8},null,{"$f":"[2]fullresults_2016_11_22_10_41!H14","v":"жен"},{"$f":"[2]fullresults_2016_11_22_10_41!I14","v":5},0,{"$f":"[2]fullresults_2016_11_22_10_41!J14","v":5},{"$f":"[2]fullresults_2016_11_22_10_41!K14","v":50},{"$f":"[2]fullresults_2016_11_22_10_41!L14","v":"участник"},{"$f":"[2]fullresults_2016_11_22_10_41!M14","v":"Гайфуллина Резеда Анваровна"},{"$f":"[2]fullresults_2016_11_22_10_41!N14","v":"МБОУ \"Средняя общеобразовательная школа №7\""},"русская литература для учащихся с родным языком обучения"]
[9,"Менделеевский",{"$f":"[2]fullresults_2016_11_22_10_41!B15","v":"МБОУ \"Средняя общеобразовательная школа №7\""},{"$f":"[2]fullresults_2016_11_22_10_41!C15","v":"Каримова "},{"$f":"[2]fullresults_2016_11_22_10_41!D15","v":"Дарина"},null,{"$f":"[2]fullresults_2016_11_22_10_41!F15","v":8},null,{"$f":"[2]fullresults_2016_11_22_10_41!H15","v":"жен"},{"$f":"[2]fullresults_2016_11_22_10_41!I15","v":8},0,{"$f":"[2]fullresults_2016_11_22_10_41!J15","v":8},{"$f":"[2]fullresults_2016_11_22_10_41!K15","v":50},{"$f":"[2]fullresults_2016_11_22_10_41!L15","v":"участник"},{"$f":"[2]fullresults_2016_11_22_10_41!M15","v":"Гайфуллина Резеда Анваровна"},{"$f":"[2]fullresults_2016_11_22_10_41!N15","v":"МБОУ \"Средняя общеобразовательная школа №7\""},"русская литература для учащихся с родным языком обучения"]
[10,"Менделеевский",{"$f":"[3]fullresults_2016_11_22_10_41!B8","v":"МБОУ \"Ильнетьская  основная общеобразовательная школа\" Менделеевского муниципального района РТ"},{"$f":"[3]fullresults_2016_11_22_10_41!C8","v":"Шамсутдинова "},{"$f":"[3]fullresults_2016_11_22_10_41!D8","v":"Карина"},null,{"$f":"[3]fullresults_2016_11_22_10_41!F8","v":"9"},null,{"$f":"[3]fullresults_2016_11_22_10_41!H8","v":"жен"},{"$f":"[3]fullresults_2016_11_22_10_41!I8","v":26},0,26,50,"призер","Кузнецова Валенина Александровна",{"$f":"[3]fullresults_2016_11_22_10_41!N8","v":"МБОУ \"Ильнетьская  основная общеобразовательная школа\" Менделеевского муниципального района РТ"},"русская литература для учащихся с родным языком обучения"]
[12,"Менделеевский",{"$f":"[4]fullresults_2016_11_22_10_41!B9","v":"МБОУ \"Тураевская средняя общеобразовательная школа\" Менделеевского муниципального района РТ"},{"$f":"[4]fullresults_2016_11_22_10_41!C9","v":"Зиннатуллина "},{"$f":"[4]fullresults_2016_11_22_10_41!D9","v":"Резида"},null,{"$f":"[4]fullresults_2016_11_22_10_41!F9","v":"10"},null,{"$f":"[4]fullresults_2016_11_22_10_41!H9","v":"жен"},{"$f":"[4]fullresults_2016_11_22_10_41!I9","v":38},0,{"$f":"[4]fullresults_2016_11_22_10_41!J9","v":38},{"$f":"[4]fullresults_2016_11_22_10_41!K9","v":50},{"$f":"[4]fullresults_2016_11_22_10_41!L9","v":"призер"},{"$f":"[4]fullresults_2016_11_22_10_41!M9","v":"Нургалеева Венера Римовна"},{"$f":"[4]fullresults_2016_11_22_10_41!N9","v":"МБОУ \"Тураевская средняя общеобразовательная школа\" Менделеевского муниципального района РТ"},"русская литература для учащихся с родным языком обучения"]
[13,"Менделеевский",{"$f":"[4]fullresults_2016_11_22_10_41!B10","v":"МБОУ \"Тураевская средняя общеобразовательная школа\" Менделеевского муниципального района РТ"},{"$f":"[4]fullresults_2016_11_22_10_41!C10","v":"Миннеханова "},{"$f":"[4]fullresults_2016_11_22_10_41!D10","v":"Алсу"},null,{"$f":"[4]fullresults_2016_11_22_10_41!F10","v":"10"},null,{"$f":"[4]fullresults_2016_11_22_10_41!H10","v":"жен"},{"$f":"[4]fullresults_2016_11_22_10_41!I10","v":44},0,{"$f":"[4]fullresults_2016_11_22_10_41!J10","v":44},{"$f":"[4]fullresults_2016_11_22_10_41!K10","v":50},{"$f":"[4]fullresults_2016_11_22_10_41!L10","v":"победитель"},{"$f":"[4]fullresults_2016_11_22_10_41!M10","v":"Нургалеева Венера Римовна"},{"$f":"[4]fullresults_2016_11_22_10_41!N10","v":"МБОУ \"Тураевская средняя общеобразовательная школа\" Менделеевского муниципального района РТ"},"русская литература для учащихся с родным языком обучения"]
[14,"Менделеевский",{"$f":"[4]fullresults_2016_11_22_10_41!B11","v":"МБОУ \"Монашевская  средняя общеобразовательная школа\" Менделеевского муниципального района РТ"},{"$f":"[4]fullresults_2016_11_22_10_41!C11","v":"Иванова "},{"$f":"[4]fullresults_2016_11_22_10_41!D11","v":"Алена "},null,{"$f":"[4]fullresults_2016_11_22_10_41!F11","v":"10"},null,{"$f":"[4]fullresults_2016_11_22_10_41!H11","v":"жен"},{"$f":"[4]fullresults_2016_11_22_10_41!I11","v":40},0,{"$f":"[4]fullresults_2016_11_22_10_41!J11","v":40},{"$f":"[4]fullresults_2016_11_22_10_41!K11","v":50},{"$f":"[4]fullresults_2016_11_22_10_41!L11","v":"призер"},{"$f":"[4]fullresults_2016_11_22_10_41!M11","v":"Кузнецова Мальвина Александровна"},{"$f":"[4]fullresults_2016_11_22_10_41!N11","v":"МБОУ \"Монашевская средняя общеобразовательная школа\" Менделеевского муниципального района РТ"},"русская литература для учащихся с родным языком обучения"]
[15,"Менделеевский",{"$f":"[4]fullresults_2016_11_22_10_41!B12","v":"МБОУ \"Монашевская  средняя общеобразовательная школа\" Менделеевского муниципального района РТ"},{"$f":"[4]fullresults_2016_11_22_10_41!C12","v":"Никандрова"},{"$f":"[4]fullresults_2016_11_22_10_41!D12","v":"Анастасия"},null,{"$f":"[4]fullresults_2016_11_22_10_41!F12","v":"10"},null,{"$f":"[4]fullresults_2016_11_22_10_41!H12","v":"жен"},{"$f":"[4]fullresults_2016_11_22_10_41!I12","v":22},0,{"$f":"[4]fullresults_2016_11_22_10_41!J12","v":22},{"$f":"[4]fullresults_2016_11_22_10_41!K12","v":50},{"$f":"[4]fullresults_2016_11_22_10_41!L12","v":"участник"},{"$f":"[4]fullresults_2016_11_22_10_41!M12","v":"Кузнецова Мальвина Александровна"},{"$f":"[4]fullresults_2016_11_22_10_41!N12","v":"МБОУ \"Монашевская  средняя общеобразовательная школа\" Менделеевского муниципального района РТ"},"русская литература для учащихся с родным языком обучения"]
[16,"Менделеевский",{"$f":"[5]fullresults_2016_11_22_10_41!B8","v":"МБОУ \"Средняя общеобразовательная школа №7\" Менделеевского муниципального района РТ"},{"$f":"[5]fullresults_2016_11_22_10_41!C8","v":"Бегишева"},{"$f":"[5]fullresults_2016_11_22_10_41!D8","v":"Гузалия"},null,{"$f":"[5]fullresults_2016_11_22_10_41!F8","v":"11"},null,{"$f":"[5]fullresults_2016_11_22_10_41!H8","v":"муж"},{"$f":"[5]fullresults_2016_11_22_10_41!I8","v":32},0,{"$f":"[5]fullresults_2016_11_22_10_41!J8","v":32},{"$f":"[5]fullresults_2016_11_22_10_41!K8","v":50},{"$f":"[5]fullresults_2016_11_22_10_41!L8","v":"победитель"},{"$f":"[5]fullresults_2016_11_22_10_41!M8","v":"Шигабиева Дильбария Фаизовна"},{"$f":"[5]fullresults_2016_11_22_10_41!N8","v":"МБОУ \"Средняя общеобразовательная школа №7\" Менделеевского муниципального района РТ"},"русская литература для учащихся с родным языком обучения"]